Cogmind - Beta 11 X2 @@@ ROGUE MODE // 2021.02.15 @ 09:22:15 Player: Luigi Panache Result: Destroyed by D-53 Grenadier with Mini Grenade Launcher Performance ------------- Evolutions (0) 0 Regions Visited (2) 400 Robots Destroyed (12) 60 Value Destroyed (348) 348 Prototype IDs (0) 0 Alien Tech Used (0) 0 Bonus (0) 0 TOTAL SCORE: 808 Bonus ------- None Cogmind --------- Core Integrity 0/250 Matter 300/300 Energy 100/100 System Corruption 0% Temperature Cool (0) Movement Core (350) Ox6 Location -10/Mines Parts ------- > --- POWER (1) -------- (None) > --- PROPULSION (2) --- (None) > --- UTILITY (2) ------ Large Storage Unit > --- WEAPON (2) ------- (None) > --- INVENTORY (15) --- Ion Engine High-capacity Matter Pod (121) Weapon Shielding Heavy Assault Rifle Heavy Assault Rifle Shotgun Shotgun Shotgun Shotgun Grenade Launcher Mining Claw Peak State ------------ > --- POWER ------------ Light Nuclear Core > --- PROPULSION ------- Light Treads > --- UTILITY ---------- Large Storage Unit Structural Scanner > --- WEAPON ----------- Heavy Assault Rifle Heavy Assault Rifle > --- INVENTORY -------- Ion Engine Wheel Compact Wheel High-capacity Matter Pod Heavy Assault Rifle Heavy Assault Rifle Shotgun Shotgun Shotgun Shotgun Grenade Launcher Mining Claw [Rating: 11] Favorites ----------- Power Light Ion Engine Engine Light Ion Engine Power Core Light Nuclear Core Propulsion Light Treads Treads Light Treads Leg Aluminum Leg Wheel Wheel Utility Structural Scanner Device Structural Scanner Storage Large Storage Unit Processor Signal Interpreter Weapon Heavy Assault Rifle Energy Gun Medium Laser Ballistic Gun Heavy Assault Rifle Build | -11 -10 -10 ------- Run | Scr Mat Min Slots Evolved . | . . . Power . | . . . Propulsion . | . . . Utility . | . . . Weapon . | . . . Parts Attached 10 | 2 6 2 Power 1 | . 1 . Engine . | . . . Core 1 | . 1 . Reactor . | . . . Propulsion 4 | 2 . 2 Treads 2 | 2 . . Leg . | . . . Wheel 2 | . . 2 Hover . | . . . Flight . | . . . Utility 3 | . 3 . Device 1 | . 1 . Storage 1 | . 1 . Processor 1 | . 1 . Hackware . | . . . Protection . | . . . Artifact . | . . . Weapon 2 | . 2 . Energy Gun . | . . . Energy Cannon . | . . . Ballistic Gun 2 | . 2 . Ballistic Cannon . | . . . Launcher . | . . . Special Weapon . | . . . Impact Weapon . | . . . Slashing Weapon . | . . . Piercing Weapon . | . . . Special Melee Weapon . | . . . Unidentified Prototypes . | . . . Parts Lost 9 | . 2 7 Power 2 | . 1 1 Propulsion 4 | . 1 3 Utility 1 | . . 1 Weapon 2 | . . 2 Highest Loss Streak 7 | . 1 7 Average Slot Usage (%) 91 | . 93 82 Engine 7 | . 9 . Core 3 | . . 13 Treads 23 | . 26 12 Device 12 | . 11 13 Storage 14 | . 14 14 Processor 1 | . 1 . Energy Gun 5 | . 7 . Ballistic Gun 22 | . 20 26 Naked Turns . | . . . Heaviest Build 32 | 11 32 32 Greatest Support 40 | 40 40 20 Greatest Overweight (x) 6 | . 1 6 Average Overweight (x) . | . . 1 Largest Inventory Capacity 15 | 8 15 15 Average Capacity 13 | 8 12 15 Most Carried 13 | 6 12 13 Average Carried 10 | 6 10 12 Final Capacity 15 | 8 15 15 Final Carried 12 | 6 12 11 Class Distribution -------------------- 100% | Mutant Dominant Class ---------------- Mutant | -10/Materials Mutant | -10/Mines Resources | -11 -10 -10 ----------- Run | Scr Mat Min Matter Collected 645 | 220 324 101 Remotely . | . . . Salvage Created 434 | . 434 . Parts 28 | . 28 . Haulers Intercepted 1 | . 1 . Recyclers Shooed . | . . . Parts Field Recycled . | . . . Retrieved Matter . | . . . Parts Self-Destructed . | . . . Prevented . | . . . Kills | -11 -10 -10 ------- Run | Scr Mat Min Combat Hostiles Destroyed 8 | . 8 . Guns 8 | . 8 . Classes Destroyed 3 | . 3 . Hauler 1 | . 1 . Watcher 3 | . 3 . Grunt 8 | . 8 . Best Kill Streak 6 | . 6 . Combat Bots Only 5 | . 5 . Max Kills in Single Turn 2 | . 2 . Gunslinging 1 | . 1 . Exploded . | . . . Melee . | . . . Uniques/NPCs Destroyed . | . . . Combat | -11 -10 -10 -------- Run | Scr Mat Min Damage Taken 1134 | . 486 648 Core 255 | . 27 228 Absorbed by Shields . | . . . Core Remaining (%) 100 | 100 . . Volleys Fired 51 | . 50 1 Largest 2 | . 2 2 Hottest 90 | . 90 46 Shots Fired 102 | . 100 2 Gun 102 | . 100 2 Cannon . | . . . Launcher . | . . . Special . | . . . Kinetic 94 | . 92 2 Thermal 8 | . 8 . Explosive . | . . . Electromagnetic . | . . . Robot Hit Streak 17 | . 17 1 Robot Miss Streak 2 | . 2 1 Penetration Max . | . . . Secondary Targets 1 | . 1 . Max Gunslinging Chain 1 | . 1 . Shots Hit Robots 74 | . 73 1 Core Hits 21 | . 20 1 Critical Hits 2 | . 2 . Critical Kills . | . . . Critical Parts Destroyed 2 | . 2 . Melee Attacks . | . . . Impact . | . . . Slashing . | . . . Piercing . | . . . Sneak Attacks . | . . . Combat Hostiles . | . . . Follow-up Attacks . | . . . Damage Inflicted 1039 | . 1007 32 Guns 1021 | . 1007 14 Cannons . | . . . Explosions . | . . . Melee . | . . . Ramming 18 | . . 18 Kinetic 996 | . 982 14 Thermal 25 | . 25 . Explosive . | . . . Electromagnetic . | . . . Impact . | . . . Slashing . | . . . Piercing . | . . . Highest Corruption . | . . . Average Corruption . | . . . Corruption Purged . | . . . Overload Shots . | . . . Overflow Damage . | . . . Projectiles . | . . . Explosions . | . . . Melee . | . . . Knockbacks . | . . . Impact . | . . . Kinetic . | . . . Secondary . | . . . Self-Inflicted Damage 5 | . . 5 Shots . | . . . Rammed 3 | . 1 2 Targets Rammed 3 | . 1 2 Kicked . | . . . Crushed . | . . . Highest Temperature 120 | . 120 . Average Temperature 27 | . 27 . Received Heat Transfer 258 | . 258 . Siege Activations . | . . . Robots Corrupted . | . . . Combat Hostiles . | . . . Parts Fried . | . . . Impact Corruptions . | . . . Robots Melted . | . . . Combat Hostiles . | . . . Parts Melted . | . . . Heat Transferred 74 | . 74 . Parts Sabotaged . | . . . Parts Stolen . | . . . Parts Stripped . | . . . Power Chain Reactions . | . . . Missiles Intercepted . | . . . Alert | -11 -10 -10 ------- Run | Scr Mat Min Peak Influence 227 | . 227 48 Initial 48 | . . 48 Average 48 | . 49 44 Maximum Alert Level 1 | . 1 . Low Security (%) 95 | 100 94 100 Level 1 4 | . 5 . Level 2 . | . . . Level 3 . | . . . Level 4 . | . . . Level 5 . | . . . High Security . | . . . Max Security . | . . . Squads Dispatched 2 | . 2 . Investigation 2 | . 2 . Extermination . | . . . Reinforcement . | . . . Assault . | . . . Garrison . | . . . Intercept . | . . . Construction Impeded . | . . . Haulers Reinforced . | . . . Stealth | -11 -10 -10 --------- Run | Scr Mat Min Distress Signals 1 | . 1 . Communications Jammed . | . . . Distress Signals . | . . . Times Spotted 23 | . 17 6 Peak Tracking Total 9 | . 5 9 Tactical Retreats 3 | . 3 . Traps | -11 -10 -10 ------- Run | Scr Mat Min Traps Triggered 2 | . 2 . Indirectly . | . . . Trap Hack Attempts . | . . . Triggered . | . . . Disarmed . | . . . Reprogrammed . | . . . Reused . | . . . Traps Extracted . | . . . Installed . | . . . Triggered . | . . . Machines | -11 -10 -10 ---------- Run | Scr Mat Min Machines Disabled . | . . . Max in Single Turn . | . . . Machines Sabotaged . | . . . Garrisons Compromised . | . . . Overloaded Fab Kills . | . . . Fab Network Shutdowns . | . . . Hacking | -11 -10 -10 --------- Run | Scr Mat Min Machines Accessed 5 | . 5 . Terminals 5 | . 5 . Fabricators . | . . . Repair Stations . | . . . Recycling Units . | . . . Scanalyzers . | . . . Garrison Access . | . . . Total Hacks 10 | . 10 . Successful 2 | . 2 . Failed 8 | . 8 . Catastrophic 2 | . 2 . Database Lockouts . | . . . Manual 7 | . 7 . Terminals 10 | . 10 . Fabricators . | . . . Repair Stations . | . . . Recycling Units . | . . . Scanalyzers . | . . . Garrison Access . | . . . Terminal Hacks 2 | . 2 . Part Schematic 1 | . 1 . Branch Access Points 1 | . 1 . Fabricator Hacks . | . . . Repair Station Hacks . | . . . Recycling Unit Hacks . | . . . Scanalyzer . | . . . Garrison Access Hacks . | . . . Unauthorized Hacks . | . . . Terminals . | . . . Fabricators . | . . . Repair Stations . | . . . Recycling Units . | . . . Scanalyzers . | . . . Garrison Access . | . . . Data Cores Recovered . | . . . Used . | . . . Hacking Detections 5 | . 5 . Full Trace Events 1 | . 1 . Feedback Events . | . . . Feedback Blocked . | . . . Robot Schematics Acquired . | . . . Robots Built . | . . . Matter . | . . . Time . | . . . Total Robot Build Rating . | . . . Part Schematics Acquired 1 | . 1 . Parts Built . | . . . Matter . | . . . Time . | . . . Total Part Build Rating . | . . . Parts Repaired . | . . . Time . | . . . Parts Recycled . | . . . Recycled Matter . | . . . Retrieved Matter . | . . . Retrieved Components . | . . . Parts Scanalyzed . | . . . Part Schematics Acquired . | . . . Parts Damaged . | . . . Bothacking | -11 -10 -10 ------------ Run | Scr Mat Min Used RIF Installer . | . . . Robots Hacked . | . . . Non-combat . | . . . Combat . | . . . Robot Hacks Applied . | . . . Relay Couplers Released . | . . . Robots Rewired . | . . . Allies Hacked . | . . . Hacks Repelled . | . . . Allies | -11 -10 -10 -------- Run | Scr Mat Min Total Allies . | . . . Largest Group . | . . . Highest-Rated Group . | . . . Highest-Rated Ally . | . . . Total Orders . | . . . Ally Attacks . | . . . Total Damage . | . . . Kills . | . . . Allies Corrupted . | . . . Allies Melted . | . . . Intel | -11 -10 -10 ------- Run | Scr Mat Min Robot Analysis Total . | . . . Derelict Logs Recovered 1 | . . 1 Drone Launches . | . . . Drone Recoveries . | . . . Exploration | -11 -10 -10 ------------- Run | Scr Mat Min Turns Passed 1333 | 5 1035 293 Spaces Moved 630 | 2 515 113 Core 3 | . . 3 Treads 616 | 1 515 100 Legs 1 | 1 . . Wheels 10 | . . 10 Hover . | . . . Flight . | . . . Fastest Speed 110 | 120 160 110 Average Speed 180 | 140 165 249 Slowest Speed 350 | 160 260 350 Overloaded Moves . | . . . Propulsion Burnouts . | . . . Robots Hopped . | . . . Cave-ins Triggered . | . . . Exploration Rate (%) 38 | 2 83 30 Regions Visited 2 Branch Regions 1 Pre-discovered Areas 1 | . . 1 Known Exits Taken 1 | . 1 . Unknown Exits Taken 1 | 1 . . Scrap Searched . | . . . Spaces Dug . | . . . Terrain Destroyed . | . . . Melee . | . . . Projectile . | . . . AOE . | . . . Terrain Rammed . | . . . Walls Destroyed . | . . . Machines Disabled . | . . . Actions | -11 -10 -10 --------- Run | Scr Mat Min Total 723 | 3 601 119 Wait 14 | . 14 . Move 628 | 1 514 113 Hop . | . . . Pick Up 10 | . 9 1 Fast Attach 5 | . 5 . Attach 2 | . . 2 Detach 1 | . 1 . Swap 3 | 2 1 . Drop 6 | . 6 . Fire 51 | . 50 1 Melee . | . . . Ram 1 | . . 1 Kick . | . . . Crush 2 | . 1 1 Escape Stasis . | . . . Rewire . | . . . Trap . | . . . Miscellaneous . | . . . Route ------- -11/Scrapyard -10/Materials (discovered 3 exits: [*Mat x2] / *Min) -10/Mines (discovered 1 exit: [*Mat]) History --------- Turn | Location | Event 1 | -11/Scrapyard | Discovered new exit (range 1) 6 | -11/Scrapyard | Entered Materials 324 | -10/Materials | Build established: Mutant 550 | -10/Materials | Discovered new exit (range 16) 842 | -10/Materials | Discovered new exit (range 16) 928 | -10/Materials | Identified exit to Mines 1041 | -10/Materials | Entered Mines 1138 | -10/Mines | Discovered new exit (range 16) 1286 | -10/Mines | Assembled infested the area 1291 | -10/Mines | Assisted by a Guerilla fighting off Assembled 1327 | -10/Mines | Core integrity fell below 50% 1332 | -10/Mines | Core integrity fell below 20% 1334 | -10/Mines | Destroyed by D-53 Grenadier with Mini Grenade Launcher Last Messages --------------- 01311_ D-53 Grenadier suffers critical hit. 01313_ Slammed into D-53 Grenadier. 01315_ The unstable cave ceiling collapses. 01316_ as-00709 destroyed. 01316_ as-80380 destroyed. 01318_ Acquired 101 matter. 01318_ Hvy. Assault Rifle destroyed. 01318_ as-58119 destroyed. 01320_ Lgt. Nuclear Core destroyed. 01322_ Hvy. Assault Rifle destroyed. 01322_ Wheel destroyed. 01323_ The unstable cave ceiling collapses. 01325_ as-29664 destroyed. 01328_ U-05 Engineer lays Concrete. 01329_ The unstable cave ceiling collapses. 01329_ U-05 Engineer builds a Wall. 01329_ Structural Scanner destroyed. 01329_ U-05 Engineer destroyed. 01331_ The unstable cave ceiling collapses. 01333_ U-05 Engineer builds a Wall. Map ----- +----------------------------------------------------+ | ??????????????????????????????##??????????? ??? | | ??????????????????????????????# ?????????? ???? | | ??????????????????????????????# ?????????# ""???? | | ??????????????????????????????# #####?### ""???? | | ?????????????????????????????## !% ## """"?? | | ?????????????????????????????# | ?? | | ?????????????????????????????? % #???? | | ??????????????????????????????? ?????? | | ???????????????????????????????? ?????????? | | ???????????????????????????????? #????????????? | | ??????????????????????????????? ##????????????? | | ?????????????????????????????## #?????????????? | | ????????????????????????????## #?????????????? | | ????????????????????????????# % ##????????????? | | ???????????????????????????## ##???????????? | | ???????????????????????????# #???????????? | | ????????????????????????????# % #???????????? | | ????????????????????????????# ##??????????? | | ????????????????????????????# #??????????? | | ???????????????????????###### #??????????? | | ??????????????????????## # dd #??????????? | | ?????????????????????## ##??????????? | | ????????????????????## ###???????????? | | ????????????????????# # #?????????????? | | ????????????????????# #?????????????? | | ????????????????????# @ #?????????????? | | ????????????????????## #?????????????? | | ????????????????????# * ##?????????????? | | ???????????####?????## # #??????????????? | | ??????????? #??????### u# ## #??????????????? | | ??????????? #??####??## #### #??????????????? | | ???????????# #### ##??# #?? #??????????????? | | ####???????# #??# #?# #??????????????? | | #???????# #?# #### #?# #??????????????? | | ## #???????# #?# #?## #??????????????? | | ?# #??????## #?## #####??# #??????????????? | | ?# ######## #?## #??????## ##??????????????? | | ?# ### #???????####???????????????? | | ?# = ! < #??????????????????????????? | | ?########## | ##??????????????????????????? | | ??????????## ### ##???????????????????????????? | | ???????????####?#####????????????????????????????? | | ?????????????????????????????????????????????????? | | ?????????????????????????????????????????????????? | | ?????????????????????????????????????????????????? | | ?????????????????????????????????????????????????? | | ?????????????????????????????????????????????????? | | ?????????????????????????????????????????????????? | | | | | +----------------------------------------------------+ Best States ------------- Heat Dissipation 25 Energy Generation 14 Energy Capacity 160 Matter Stores 300 Matter Capacity 300 Sight Range 16 Terrain Scan Density 10 Evasion (%) 40 Recoil Reduction 2 Item Schematics ----------------- Hcp. Storage Unit | -10/Materials | Hacked Robot Schematics ------------------ None Fabricated ------------ Nothing Alien Tech Used ----------------- None Achievements -------------- None Challenges ------------ None Game ------ Seed ElectronImprinterSlayer Manual? 0 Play Time 00:07:47 Cumulative 275.8 hours Start 2021.02.15 @ 09:09:21 End 2021.02.15 @ 09:22:15 Sessions 1 Manual Loads 0 Difficulty Rogue Special Mode None Game No. 275 Rogue 129 Adventurer 68 Explorer 78 Win Type - Total 21 Types 15/0/4/2/0/0/0/0/0 Lore% 78 Gallery% 86 Achievement% 67 Wizard Run 0 Options --------- ASCII 0 Keyboard 0 Movement Numpad Keybinds 0 Fullscreen 2 Font 18/TerminusBold Map View 76x50 Tactical HUD 1 Map Filters NONE Filters NONE Steam 1 RUN: 3140040e-f13f-41d1-97df-6573f3a07c91